fUST/lending_fUST_20240821
["ID","MTS","AMOUNT","RATE_DAILY","PERIOD"]
[335423022,1724219440853,-195.753675,0.000294,7]
[335423023,1724219440862,-151.0,0.000294,7]
[335423024,1724219440871,-151.0,0.000294,7]
[335423025,1724219440881,-167.049542,0.000294,7]
[335423026,1724219440890,-344.885066,0.000294,7]
[335423027,1724219440899,-167.049542,0.000294,7]
[335423028,1724219440909,-344.885066,0.000294,7]
[335423029,1724219440918,-151.0,0.000294,7]
[335423030,1724219440928,-151.0,0.000294,7]
[335423031,1724219440937,-1000.0,0.00029521,4]
[335423032,1724219440946,-17768.2443956,0.00029521,3]
[335423033,1724219440957,-151.0,0.00029521,7]
[335423034,1724219440966,-151.0,0.00029521,7]
[335423035,1724219440975,-167.049542,0.00029521,7]
[335423036,1724219440985,-344.885066,0.00029521,7]
[335423037,1724219440994,-167.049542,0.00029521,7]
[335423038,1724219441005,-344.885066,0.00029521,7]
[335423039,1724219441016,-151.0,0.00029521,7]
[335423040,1724219441026,-217.1,0.00029531,2]
[335423041,1724219441036,-325.49,0.000296,7]
[335423042,1724219441046,-409.76712985,0.00029962,2]
[335423043,1724219441056,-178.72751622,0.0003,5]
[335423044,1724219441066,-600.03826508,0.0003,2]
[335423045,1724219441077,-1000.0,0.0003,30]
[335423046,1724219441087,-151.0,0.0003,120]
[335423047,1724219441098,-639.0,0.0003,120]
[335423048,1724219441108,-300.0,0.0003,2]
[335423049,1724219441118,-274.0,0.0003,2]
[335423050,1724219441127,-824.36405303,0.00030419,4]
[335423051,1724219441137,-217.1,0.00030431,2]
[335423052,1724219441148,-151.0,0.00030431,2]
[335423053,1724219441158,-156.368345,0.000305,8]
[335423054,1724219441167,-33982.55526602,0.00030613,9]
[335423055,1724219441178,-153.38,0.000307,31]
[335423056,1724219441189,-153.38,0.000307,31]
[335423057,1724219441200,-153.38,0.000307,31]
[335423058,1724219441211,-153.38,0.000307,31]
[335423059,1724219441220,-153.38,0.000307,31]
[335423060,1724219441230,-153.38,0.000307,31]
[335423061,1724219441239,-153.38,0.000307,31]
[335423062,1724219441249,-153.38,0.000307,31]
[335423063,1724219441259,-153.38,0.000307,31]
[335423064,1724219441270,-153.38,0.000307,31]
[335423065,1724219441282,-153.38,0.000307,31]
[335423066,1724219441293,-153.38,0.000307,31]
[335423067,1724219441303,-153.38,0.000307,31]
[335423068,1724219441314,-153.38,0.000307,31]
[335423069,1724219441324,-153.38,0.000307,31]
[335423070,1724219441333,-153.38,0.000307,31]
[335423071,1724219441343,-153.38,0.000307,31]
[335423072,1724219441352,-153.38,0.000307,31]
[335423073,1724219441362,-153.38,0.000307,31]
[335423074,1724219441371,-153.38,0.000307,31]
[335423075,1724219441383,-153.38,0.000307,31]
[335423076,1724219441393,-153.38,0.000307,31]
[335423077,1724219441404,-153.38,0.000307,31]
[335423078,1724219441414,-153.38,0.000307,31]
[335423079,1724219441424,-561.31651876,0.00030717,7]
[335423080,1724219441433,-153.0,0.00030873,2]
[335423081,1724219441443,-153.0,0.00030873,2]
[335423082,1724219441453,-153.0,0.00030873,2]
[335423083,1724219441462,-153.0,0.00030873,2]
[335423084,1724219441473,-153.0,0.00030873,2]
[335423085,1724219441484,-153.0,0.00030873,2]
[335423086,1724219441494,-153.0,0.00030873,2]
[335423087,1724219441503,-153.0,0.00030873,2]
[335423088,1724219441515,-153.0,0.00030873,2]
[335423089,1724219441525,-153.0,0.00030873,2]
[335423090,1724219441534,-153.0,0.00030873,2]
[335423091,1724219441544,-153.0,0.00030873,2]
[335423092,1724219441554,-153.0,0.00030873,2]
[335423093,1724219441564,-153.0,0.00030873,2]
[335423094,1724219441573,-153.0,0.00030873,2]
[335423095,1724219441582,-153.0,0.00030873,2]
[335423096,1724219441591,-153.0,0.00030873,2]
[335423097,1724219441601,-153.0,0.00030873,2]
[335423098,1724219441611,-153.0,0.00030873,2]
[335423099,1724219441620,-153.0,0.00030873,2]
[335423100,1724219441629,-151.0,0.00030873,7]
[335423101,1724219441640,-1000.0,0.00031,31]
[335423102,1724219441649,-300.0,0.00031,4]
[335423103,1724219441658,-634.42098133,0.00031197,7]
[335423104,1724219441668,-217.1,0.00031331,3]
[335423105,1724219441677,-151.0,0.00031331,3]
[335423106,1724219441686,-150.112233,0.000314,6]
[335423107,1724219441698,-409.76712985,0.00031424,2]
[335423108,1724219441708,-155.98974481,0.00031781,120]
[335423109,1724219441719,-5000.0,0.00032,6]
[335423110,1724219441732,-300.0,0.00032,5]
[335423111,1724219441742,-1000.0,0.00032,32]
[335423112,1724219441753,-217.1,0.00032231,3]
[335423113,1724219441763,-151.0,0.00032231,3]
[335423114,1724219441774,-150.112233,0.000323,10]
[335423115,1724219441783,-167.921841,0.00032314,2]
[335423116,1724219441792,-290.701469,0.00032314,2]
[335423117,1724219441801,-220.204456,0.00032314,2]
[335423118,1724219441810,-168.673987,0.00032314,2]
[335423119,1724219441819,-166.406447,0.00032314,2]
[335423120,1724219441830,-193.800979,0.00032314,2]
[335423121,1724219441839,-220.204456,0.00032314,2]
[335423122,1724219441851,-166.406446,0.00032314,2]
[335423123,1724219441861,-220.204455,0.00032314,2]
[335423124,1724219441869,-193.800979,0.00032314,2]
[335423125,1724219441950,-168.673987,0.00032314,2]
[335423126,1724219441959,-167.0,0.00032622,2]
[335423127,1724219441969,-153.0217,0.0003269,7]
[335423128,1724219441980,-151.0,0.0003269,7]
[335423129,1724219441991,-153.38,0.000327,31]
[335423130,1724219442000,-153.38,0.000327,31]
[335423131,1724219442009,-153.38,0.000327,31]
[335423132,1724219442019,-153.38,0.000327,31]
[335423133,1724219442030,-153.38,0.000327,31]
[335423134,1724219442039,-153.38,0.000327,31]
[335423135,1724219442049,-153.38,0.000327,31]
[335423136,1724219442059,-153.38,0.000327,31]
[335423137,1724219442069,-153.38,0.000327,31]
[335423138,1724219442079,-153.38,0.000327,31]
[335423139,1724219442090,-153.38,0.000327,31]
[335423140,1724219442101,-153.38,0.000327,31]
[335423141,1724219442112,-153.38,0.000327,31]
[335423142,1724219442123,-153.38,0.000327,31]
[335423143,1724219442133,-153.38,0.000327,31]
[335423144,1724219442143,-153.38,0.000327,31]
[335423145,1724219442153,-153.38,0.000327,31]
[335423146,1724219442162,-153.38,0.000327,31]
[335423147,1724219442172,-153.38,0.000327,31]
[335423148,1724219442185,-153.38,0.000327,31]
[335423149,1724219442196,-153.38,0.000327,31]
[335423150,1724219442207,-153.38,0.000327,31]
[335423151,1724219442216,-153.38,0.000327,31]
[335423152,1724219442225,-153.38,0.000327,31]
[335423153,1724219442234,-1543.449739,0.00032876,7]
[335423154,1724219442244,-1543.449739,0.00032876,7]
[335423155,1724219442253,-256.402702,0.00032876,7]
[335423156,1724219442262,-195.490736,0.00032876,7]
[335423157,1724219442271,-200.180347,0.00032876,7]
[335423158,1724219442280,-151.0,0.00032876,7]
[335423159,1724219442289,-6440.14,0.00032876,21]
[335423160,1724219442300,-409.76712985,0.00032885,2]
[335423161,1724219442311,-325.49,0.000329,30]
[335423162,1724219442323,-300.0,0.00033,7]
[335423163,1724219442333,-1000.0,0.00033,33]
[335423164,1724219442343,-157.31570751,0.00033,2]
[335423165,1724219442352,-271.66030088,0.00033,2]
[335423166,1724219442364,-153.0,0.00033014,2]
[335423167,1724219442374,-153.0,0.00033014,2]
[335423168,1724219442384,-153.0,0.00033014,2]
[335423169,1724219442396,-153.0,0.00033014,2]
[335423170,1724219442406,-153.0,0.00033014,2]
[335423171,1724219442416,-153.0,0.00033014,2]
[335423172,1724219442426,-153.0,0.00033014,2]
[335423173,1724219442435,-153.0,0.00033014,2]
[335423174,1724219442444,-153.0,0.00033014,2]
[335423175,1724219442454,-153.0,0.00033014,2]
[335423176,1724219442464,-307.1663741,0.00033014,2]
[335423177,1724219442477,-258.85080897,0.00033073,5]
[335423178,1724219442486,-150.0,0.00033073,5]
[335423179,1724219442498,-35536.4887911,0.0003309,4]
[335423180,1724219442508,-151.0,0.0003309,7]
[335423181,1724219442519,-151.0,0.0003309,7]
[335423182,1724219442528,-167.049542,0.0003309,7]
[335423183,1724219442539,-344.885066,0.0003309,7]
[335423184,1724219442548,-167.049542,0.0003309,7]
[335423185,1724219442557,-344.885066,0.0003309,7]
[335423186,1724219442567,-153.765531,0.0003309,7]
[335423187,1724219442575,-151.0,0.0003309,7]
[335423188,1724219442584,-920.52,0.000331,14]
[335423189,1724219442593,-59174.88,0.000331,14]
[335423190,1724219442602,-164.341905,0.000331,7]
[335423191,1724219442613,-151.0,0.000331,7]
[335423192,1724219442622,-193.324513,0.000331,7]
[335423193,1724219442634,-193.324513,0.000331,7]
[335423194,1724219442645,-195.753675,0.000331,7]
[335423195,1724219442654,-195.753675,0.000331,7]
[335423196,1724219442663,-193.800979,0.00033122,2]
[335423197,1724219442675,-193.800979,0.00033122,2]
[335423198,1724219442686,-217.1,0.00033131,3]
[335423199,1724219442698,-151.0,0.00033131,3]
[335423201,1724219442708,-150.112233,0.000332,10]
[335423203,1724219442718,-157.31570743,0.00033211,2]
[335423204,1724219442730,-156.21496732,0.00033234,3]
[335423205,1724219442739,-150.631,0.00033276,2]
[335423206,1724219442748,-524.6,0.00033276,2]
[335423207,1724219442757,-166.056,0.00033276,2]
[335423208,1724219442766,-7727.0,0.00033276,2]
[335423209,1724219442775,-239.566,0.00033276,2]
[335423210,1724219442784,-245.769,0.00033276,2]
[335423211,1724219442793,-151.0,0.00033276,7]
[335423212,1724219442802,-154.155532,0.00033276,7]
[335423213,1724219442812,-167.049542,0.00033276,7]
[335423214,1724219442822,-344.885066,0.00033276,7]
[335423215,1724219442832,-167.049542,0.00033276,7]
[335423216,1724219442842,-344.885066,0.00033276,7]
[335423217,1724219442852,-151.0,0.00033276,7]
[335423218,1724219442864,-409.0504316,0.00033288,2]
[335423219,1724219442874,-153.0,0.00033288,2]
[335423220,1724219442884,-207.6241733,0.00033288,2]
[335423221,1724219442893,-207.6241733,0.00033288,2]
[335423222,1724219442903,-409.0504316,0.00033288,2]
[335423223,1724219442913,-207.6241733,0.00033288,2]
[335423224,1724219442922,-366.9981299,0.00033288,2]
[335423225,1724219442932,-187.8642997,0.00033288,2]
[335423226,1724219442941,-150.112234,0.000333,10]
[335423227,1724219442950,-157.31570743,0.00033422,2]
[335423228,1724219442960,-602.76460417,0.00033534,2]
[335423229,1724219442969,-250.0,0.00033621,5]
[335423230,1724219442979,-193.488076,0.00033626,2]
[335423231,1724219442988,-157.31570743,0.00033633,2]
[335423232,1724219442997,-201.44032986,0.00033844,2]
[335423233,1724219443007,-157.31570743,0.00033844,2]
[335423235,1724219443016,-150.112233,0.000339,8]
[335423236,1724219443026,-193.800979,0.0003393,2]
[335423238,1724219443035,-193.800979,0.0003393,2]
[335423240,1724219443045,-220.204456,0.0003393,2]
[335423241,1724219443054,-166.406447,0.0003393,2]
[335423242,1724219443064,-166.406446,0.0003393,2]
[335423243,1724219443073,-220.204455,0.0003393,2]
[335423244,1724219443082,-151.0,0.00033968,7]
[335423245,1724219443091,-151.0,0.00033968,7]
[335423246,1724219443100,-5000.0,0.00034,7]
[335423247,1724219443110,-300.0,0.00034,9]
[335423248,1724219443119,-1000.0,0.00034,34]
[335423249,1724219443128,-151.0,0.00034,7]
[335423250,1724219443137,-3478.22222942,0.00034,120]
[335423251,1724219443146,-1543.449739,0.00034,7]
[335423252,1724219443156,-1543.449739,0.00034,7]
[335423253,1724219443166,-217.1,0.00034031,4]
[335423254,1724219443176,-151.0,0.00034031,4]
[335423255,1724219443186,-157.31570743,0.00034056,2]
[335423256,1724219443195,-150.112233,0.000341,5]
[335423257,1724219443205,-450.0241823,0.00034168,5]
[335423258,1724219443215,-1000.0,0.00034213,2]
[335423259,1724219443225,-151.0,0.00034213,7]
[335423260,1724219443235,-151.0,0.00034236,7]
[335423261,1724219443244,-193.324513,0.00034236,7]
[335423262,1724219443254,-193.324513,0.00034236,7]
[335423263,1724219443263,-195.753675,0.00034236,7]
[335423264,1724219443273,-195.753675,0.00034236,7]
[335423265,1724219443282,-5294.72514788,0.00034236,4]
[335423266,1724219443338,-10962.06348615,0.000264,9]
[335423267,1724219443348,-150.63,0.00033276,2]
[335423268,1724219443359,-12473.51924772,0.00034236,4]
[335423269,1724219443375,-151.0,0.00034246,7]
[335423270,1724219443385,-1543.449739,0.00034246,7]
[335423271,1724219443395,-1543.449739,0.00034246,7]
[335423272,1724219443405,-500.0,0.00034246,21]
[335423273,1724219443414,-151.0,0.00034246,7]
[335423274,1724219443423,-151.0,0.00034246,7]
[335423275,1724219443433,-193.324513,0.00034246,7]
[335423276,1724219443442,-193.324513,0.00034246,7]
[335423277,1724219443452,-195.753675,0.00034246,7]
[335423278,1724219443524,-195.753675,0.00034246,7]
[335423279,1724219443542,-3706.53,0.00034246,21]
[335423280,1724219443553,-1724.90141213,0.00034246,21]
[335423294,1724219446286,-70.50989256,0.00034246,21]
[335423296,1724219684174,204.72981197,0.00013971,2]
[335423297,1724219701368,176.35794199,0.00013971,3]
[335423298,1724219736607,1934.68067523,0.00013971,2]
[335423299,1724219739458,403.97807828,0.00013971,2]
[335423303,1724220328433,244.01356434,0.00013971,2]
[335423304,1724220345274,-219.240983,0.00014247,2]
[335423305,1724220345295,-179.206406,0.00014247,2]
[335423306,1724220345316,-177.06994059,0.00014519,2]
[335423307,1724220358143,-685.57609477,0.00014519,2]
[335423308,1724220358165,-318.55706663,0.00014519,2]
[335423309,1724220358186,-167.642525,0.00016598,2]
[335423310,1724220358207,-35.15862884,0.00016771,2]
[335423311,1724220435109,-3000.0,0.00016433,2]
[335423312,1724220435134,-132.48389616,0.00016771,2]
[335423313,1724220435157,-167.642525,0.00016944,2]
[335423314,1724220435177,-782.718708,0.00016974,2]
[335423315,1724220435207,-1111.18149522,0.00016974,2]
[335423316,1724220435228,-277.68803325,0.00016985,2]
[335423317,1724220435249,-277.68803325,0.00016985,2]
[335423318,1724220435270,-300.0,0.00016999,2]
[335423319,1724220435291,-896.15390754,0.00017,2]
[335423322,1724220440164,-204.20062038,0.00016974,2]
[335423323,1724220447131,-782.718708,0.00016968,2]
[335423324,1724220447154,-750.6380626,0.00016974,2]
[335423325,1724220447176,-4103.84609246,0.00017,2]
[335423326,1724220447201,-167.642525,0.00017117,2]
[335423327,1724220447222,-303.14911,0.00017287,2]
[335423328,1724220447245,-167.642525,0.0001729,2]
[335423329,1724220447269,-167.642525,0.00017463,2]
[335423330,1724220447290,-906.4112229,0.0001747,2]
[335423331,1724220447312,-1877.88125051,0.00017898,2]
[335423332,1724220449121,-469.82178573,0.00017898,2]
[335423334,1724220450104,-228.51231443,0.00017898,2]
[335423335,1724220453094,-237.21197637,0.00017898,2]
[335423336,1724220454109,-641.6219398,0.00017898,2]
[335423338,1724220545099,-862.64603536,0.00014245,2]
[335423339,1724220545144,-686.51315781,0.00017898,2]
[335423340,1724220547122,-6117.59842002,0.00017898,2]
[335423341,1724220549122,-84.35255953,0.00017898,2]
[335423342,1724220549151,-107.72744047,0.00018,2]
[335423343,1724220551117,-239.54398459,0.00018,2]
[335423344,1724220551152,-3084.44340735,0.00018,2]
[335423345,1724220565956,184.03089141,0.00014519,2]
[335423346,1724220565978,87.35840873,0.00014519,2]
[335423347,1724220566001,158.75145146,0.00014519,2]
[335423348,1724220571100,-36.6307394,0.00014519,2]
[335423349,1724220571123,-1568.28516759,0.00018,2]
[335423369,1724220614691,147.71062383,0.00014247,2]
[335423370,1724220614714,96.59127517,0.00014247,2]
[335423382,1724220632283,-5000.0,0.00019,2]
[335423383,1724220632293,-500.0,0.00019045,2]
[335423384,1724220632303,-161.9327792,0.00019178,2]
[335423385,1724220632312,-251.0,0.00019178,2]
[335423386,1724220632322,-166.751608,0.00019178,2]
[335423387,1724220632331,-500.0,0.0001926,2]
[335423388,1724220632340,-500.0,0.00019989,2]
[335423389,1724220632350,-500.0,0.00019989,2]
[335423390,1724220632361,-500.0,0.00019989,2]
[335423391,1724220632371,-500.0,0.00019989,2]
[335423392,1724220632381,-500.0,0.00019989,2]
[335423393,1724220632390,-500.0,0.00019989,2]
[335423394,1724220632400,-500.0,0.00019989,2]
[335423395,1724220632410,-500.0,0.00019989,2]
[335423396,1724220632420,-500.0,0.00019989,2]
[335423397,1724220632429,-500.0,0.00019989,2]
[335423398,1724220632439,-500.0,0.00019989,2]
[335423399,1724220632449,-500.0,0.00019989,2]
[335423400,1724220632458,-500.0,0.00019989,2]
[335423401,1724220632468,-500.0,0.00019989,2]
[335423402,1724220632478,-500.0,0.00019989,2]
[335423403,1724220632488,-500.0,0.00019989,2]
[335423404,1724220632497,-578.67299144,0.00019989,2]
[335423405,1724220632508,-17880.76303551,0.0001999,2]
[335423449,1724220638501,-293.62794693,0.00019973,2]
[335423451,1724220638511,-1699.71239577,0.0001999,2]
[335423454,1724220638559,-8300.85627212,0.0001999,2]
[335423455,1724220638569,-226.13158555,0.0002,2]
[335423456,1724220638579,-154.60575532,0.0002,2]
[335423457,1724220638589,-1260.81854444,0.0002,2]
[335423458,1724220638599,-126513.3262371,0.0002,2]
[335423459,1724220638608,-499.58060923,0.00020228,2]
[335423460,1724220638618,-239.24463192,0.0002024,2]
[335423461,1724220638629,-277.68803325,0.0002024,2]
[335423462,1724220638639,-244.301899,0.00020707,2]
[335423463,1724220638649,-715.416016,0.00021,2]
[335423464,1724220638659,-782.718708,0.00021399,2]
[335423465,1724220638668,-221.33669437,0.00021783,2]
[335423466,1724220638678,-160.8404123,0.00022,2]
[335423467,1724220638687,-634.42098133,0.00022424,2]
[335423468,1724220638697,-500.0,0.00022476,2]
[335423469,1724220638706,-156.368347,0.000226,5]
[335423470,1724220638716,-500.0,0.00023162,2]
[335423471,1724220638725,-499.58060922,0.00023721,2]
[335423472,1724220638735,-882.99597685,0.00023979,2]
[335423473,1724220638744,-150.112233,0.000241,5]
[335423474,1724220638755,-200.0,0.00024658,15]
[335423475,1724220638764,-200.0,0.00024658,15]
[335423476,1724220638774,-200.0,0.00024658,2]
[335423477,1724220638784,-380.0,0.00024658,2]
[335423478,1724220638794,-500.0,0.00024879,2]
[335423479,1724220638815,-154.60575532,0.00025,2]
[335423480,1724220638825,-196.28103519,0.00025,2]
[335423481,1724220638835,-611.58848436,0.00025,2]
[335423482,1724220638845,-363.5,0.00025081,2]
[335423483,1724220638856,-150.112233,0.000257,7]
[335423484,1724220638869,-363.5,0.00025977,2]
[335423485,1724220638881,-500.0,0.00026269,2]
[335423486,1724220638891,-500.0,0.00026599,2]
[335423487,1724220638901,-325.37307198,0.00026599,2]
[335423488,1724220638911,-500.0,0.00026599,2]
[335423489,1724220638922,-309.38985389,0.00026599,2]
[335423490,1724220638932,-500.0,0.00026599,2]
[335423491,1724220638944,-500.0,0.00026599,2]
[335423492,1724220638954,-500.0,0.00026599,2]
[335423493,1724220638963,-500.0,0.00026599,2]
[335423494,1724220638973,-500.0,0.00026599,2]
[335423495,1724220638983,-500.0,0.00026599,2]
[335423496,1724220638993,-500.33667184,0.00026599,2]
[335423497,1724220639004,-500.0,0.00026599,2]
[335423498,1724220639014,-500.0,0.00026599,2]
[335423499,1724220639023,-500.0,0.00026599,2]
[335423500,1724220639033,-449.56,0.000266,31]
[335423501,1724220639044,-449.56,0.000266,31]
[335423502,1724220639054,-449.56,0.000266,31]
[335423503,1724220639063,-449.56,0.000266,31]
[335423504,1724220639074,-449.56,0.000266,31]
[335423505,1724220639084,-449.56,0.000266,31]
[335423506,1724220639094,-449.56,0.000266,31]
[335423507,1724220639103,-449.56,0.000266,31]
[335423508,1724220639113,-449.56,0.000266,31]
[335423509,1724220639123,-449.56,0.000266,31]
[335423510,1724220639134,-449.56,0.000266,31]
[335423511,1724220639144,-449.56,0.000266,31]
[335423512,1724220639153,-363.5,0.00026872,2]
[335423513,1724220639163,-244.301899,0.00027167,2]
[335423514,1724220639173,-150.112233,0.000272,5]
[335423515,1724220639182,-499.58060922,0.00027214,2]
[335423516,1724220639192,-363.5,0.00027768,2]
[335423517,1724220639202,-13940.6658517,0.0002859,3]
[335423518,1724220639212,-449.56,0.000286,31]
[335423519,1724220639221,-449.56,0.000286,31]
[335423520,1724220639231,-449.56,0.000286,31]
[335423521,1724220639240,-449.56,0.000286,31]
[335423522,1724220639250,-449.56,0.000286,31]
[335423523,1724220639260,-449.56,0.000286,31]
[335423524,1724220639269,-449.56,0.000286,31]
[335423525,1724220639278,-449.56,0.000286,31]
[335423526,1724220639288,-449.56,0.000286,31]
[335423527,1724220639297,-449.56,0.000286,31]
[335423528,1724220639307,-449.56,0.000286,31]
[335423529,1724220639317,-449.56,0.000286,31]
[335423530,1724220639326,-449.56,0.000286,31]
[335423531,1724220639336,-449.56,0.000286,31]
[335423532,1724220639345,-449.56,0.000286,31]
[335423533,1724220639356,-449.56,0.000286,31]
[335423534,1724220639367,-449.56,0.000286,31]
[335423535,1724220639376,-449.56,0.000286,31]
[335423536,1724220639389,-449.56,0.000286,31]
[335423537,1724220639399,-449.56,0.000286,31]
[335423538,1724220639409,-449.56,0.000286,31]
[335423539,1724220639419,-449.56,0.000286,31]
[335423540,1724220639429,-449.56,0.000286,31]
[335423541,1724220639438,-449.56,0.000286,31]
[335423542,1724220639448,-363.5,0.00028663,2]
[335423543,1724220639457,-163.795991,0.0002871,2]
[335423544,1724220639467,-150.112233,0.000288,10]
[335423545,1724220639476,-300.0,0.00029,2]
[335423546,1724220639486,-500.0,0.00029403,2]
[335423547,1724220639497,-500.0,0.00029442,4]
[335423548,1724220639507,-201.44032986,0.00029442,2]
[335423549,1724220639517,-363.5,0.00029558,2]
[335423550,1724220639527,-151.0,0.00029558,2]
[335423551,1724220639536,-500.0,0.00029787,2]
[335423552,1724220639546,-1000.0,0.0002999,4]
[335423553,1724220639555,-178.72751622,0.0003,5]
[335423554,1724220639565,-151.0,0.0003,120]
[335423555,1724220639574,-639.0,0.0003,120]
[335423556,1724220639583,-300.0,0.0003,2]
[335423557,1724220639593,-1000.0,0.0003,30]
[335423558,1724220639602,-274.0,0.0003,2]
[335423559,1724220639612,-173.0,0.0003,2]
[335423560,1724220639622,-150.112233,0.000304,6]
[335423561,1724220639631,-363.5,0.00030454,2]
[335423562,1724220639641,-151.0,0.00030454,2]
[335423563,1724220639654,-153.0,0.00030538,2]
[335423564,1724220639665,-153.0,0.00030538,2]
[335423565,1724220639675,-153.0,0.00030538,2]
[335423566,1724220639685,-153.0,0.00030538,2]
[335423567,1724220639695,-153.0,0.00030538,2]
[335423568,1724220639705,-153.0,0.00030538,2]
[335423569,1724220639714,-153.0,0.00030538,2]
[335423570,1724220639724,-153.0,0.00030538,2]
[335423571,1724220639734,-153.0,0.00030538,2]
[335423572,1724220639743,-153.0,0.00030538,2]
[335423573,1724220639753,-153.0,0.00030538,2]
[335423574,1724220639763,-153.0,0.00030538,2]
[335423575,1724220639773,-153.0,0.00030538,2]
[335423576,1724220639783,-449.56,0.000307,31]
[335423577,1724220639793,-449.56,0.000307,31]
[335423578,1724220639805,-449.56,0.000307,31]
[335423579,1724220639816,-449.56,0.000307,31]
[335423580,1724220639827,-449.56,0.000307,31]
[335423581,1724220639837,-449.56,0.000307,31]
[335423582,1724220639847,-449.56,0.000307,31]
[335423583,1724220639856,-449.56,0.000307,31]
[335423584,1724220639869,-449.56,0.000307,31]
[335423585,1724220639878,-449.56,0.000307,31]
[335423586,1724220639888,-449.56,0.000307,31]
[335423587,1724220639897,-449.56,0.000307,31]
[335423588,1724220639908,-449.56,0.000307,31]
[335423589,1724220639918,-449.56,0.000307,31]
[335423590,1724220639927,-449.56,0.000307,31]
[335423591,1724220639938,-449.56,0.000307,31]
[335423592,1724220639948,-449.56,0.000307,31]
[335423593,1724220639957,-449.56,0.000307,31]
[335423594,1724220639967,-449.56,0.000307,31]
[335423595,1724220639976,-449.56,0.000307,31]
[335423596,1724220639986,-449.56,0.000307,31]
[335423597,1724220639996,-449.56,0.000307,31]
[335423598,1724220640005,-449.56,0.000307,31]
[335423599,1724220640016,-449.56,0.000307,31]
[335423600,1724220640025,-499.58060922,0.00030707,2]
[335423601,1724220640035,-824.36405303,0.00030888,4]
[335423602,1724220640046,-153.0,0.00030938,2]
[335423603,1724220640055,-153.0,0.00030938,2]
[335423604,1724220640064,-153.0,0.00030938,2]
[335423605,1724220640074,-153.0,0.00030938,2]
[335423606,1724220640083,-300.0,0.00031,4]
[335423607,1724220640093,-1000.0,0.00031,31]
[335423608,1724220640103,-363.5,0.00031349,3]
[335423609,1724220640113,-151.0,0.00031349,3]
[335423610,1724220640122,-561.31651876,0.00031515,7]
[335423615,1724220640260,-173.0,0.00031644,2]
[335423617,1724220640270,-155.98974481,0.00031781,120]
[335423619,1724220640279,-150.112233,0.000319,6]
[335423621,1724220640289,-500.0,0.00031905,7]
[335423623,1724220640298,-300.0,0.00032,5]
[335423625,1724220640307,-1000.0,0.00032,32]
[335423627,1724220640317,-363.5,0.00032245,3]
[335423629,1724220640327,-151.0,0.00032245,3]
[335423631,1724220640336,-159.369985,0.00032314,2]
[335423633,1724220640345,-184.981079,0.00032314,2]
[335423635,1724220640355,-166.406446,0.00032314,2]
[335423637,1724220640365,-220.204455,0.00032314,2]
[335423639,1724220640374,-290.701469,0.00032314,2]